fUSD/lending_fUSD_20240129
["ID","MTS","AMOUNT","RATE_DAILY","PERIOD"]
[312969045,1706555451931,-219.0,0.00043314,7]
[312969046,1706555451940,-339.0,0.00043314,7]
[312969047,1706555451951,-150.0,0.00043314,7]
[312969048,1706555451961,-748.3,0.00043332,2]
[312969049,1706555451971,-151.0129,0.00043348,19]
[312969050,1706555451979,-303.58,0.00043365,2]
[312969051,1706555451989,-1208.0,0.00043424,30]
[312969052,1706555451998,-2080.12090974,0.00043426,5]
[312969053,1706555452007,-151.0129,0.00043448,20]
[312969054,1706555452016,-154.47780885,0.0004345,30]
[312969055,1706555452025,-167.0,0.00043501,2]
[312969056,1706555452035,-169.0,0.00043561,2]
[312969057,1706555452044,-647.0,0.000436,33]
[312969058,1706555452063,-1000.0,0.00043677,2]
[312969059,1706555452075,-402.0,0.00043684,7]
[312969060,1706555452274,-219.0,0.00043684,7]
[312969061,1706555452284,-339.0,0.00043684,7]
[312969062,1706555452294,-150.0,0.00043684,7]
[312969063,1706555452303,-151.0129,0.00043748,20]
[312969064,1706555452313,-1000.0,0.000438,2]
[312969065,1706555452322,-823.03391887,0.000438,30]
[312969066,1706555452332,-8000.0,0.000438,2]
[312969067,1706555452341,-17078.11480719,0.00043822,5]
[312969068,1706555452351,-150.0,0.00043832,2]
[312969069,1706555452363,-494.7474111,0.00043835,7]
[312969070,1706555452372,-936.93,0.00043836,15]
[312969071,1706555452382,-500.0,0.00043836,16]
[312969072,1706555452392,-1308.07,0.000439,7]
[312969073,1706555452401,-2953.51384674,0.000439,30]
[312969074,1706555452411,-23229.80672776,0.00043939,19]
[312969075,1706555452420,-20714.13891701,0.00043939,19]
[312969076,1706555452430,-154.47780885,0.0004395,30]
[312969077,1706555452440,-200.0,0.00043987,3]
[312969078,1706555452450,-176.79285268,0.00043999,4]
[312969079,1706555452459,-150.0,0.00043999,4]
[312969080,1706555452469,-50000.0,0.00044,24]
[312969081,1706555452479,-1000.0,0.00044,2]
[312969082,1706555452488,-1016.21867486,0.00044,5]
[312969083,1706555452498,-444.96429077,0.00044,6]
[312969084,1706555452511,-6938.4866468,0.00044,21]
[312969085,1706555452520,-6938.1380139,0.00044,21]
[312969086,1706555452529,-1453.95,0.00044,7]
[312969087,1706555452539,-4644.39,0.00044,7]
[312969088,1706555452549,-6860.84698696,0.00044,21]
[312969089,1706555452559,-1059.89,0.00044,6]
[312969090,1706555452569,-1000.0,0.00044,2]
[312969091,1706555452579,-253.66369017,0.00044,120]
[312969092,1706555452588,-232.8240532,0.00044,30]
[312969093,1706555452598,-913.02452,0.00044,2]
[312969094,1706555452608,-402.0,0.00044054,7]
[312969095,1706555452617,-219.0,0.00044054,7]
[312969096,1706555452626,-339.0,0.00044054,7]
[312969097,1706555452635,-150.0,0.0004407,10]
[312969098,1706555452645,-647.0,0.000441,34]
[312969099,1706555452654,-200.0,0.000441,2]
[312969100,1706555452665,-208.0,0.0004411,30]
[312969101,1706555452674,-1817.89466,0.00044146,2]
[312969102,1706555452683,-151.0129,0.00044148,22]
[312969103,1706555452693,-205.0,0.00044214,31]
[312969104,1706555452702,-150.0,0.0004434,2]
[312969105,1706555452712,-151.0129,0.00044348,20]
[312969106,1706555452722,-402.0,0.00044424,7]
[312969107,1706555452732,-219.0,0.00044424,7]
[312969108,1706555452741,-339.0,0.00044424,7]
[312969109,1706555452750,-152.0,0.00044438,9]
[312969110,1706555452760,-151.0129,0.00044448,22]
[312969111,1706555452769,-154.47780885,0.0004445,30]
[312969112,1706555452779,-5010.0,0.00044469,7]
[312969113,1706555452789,-647.0,0.000446,34]
[312969114,1706555452799,-303.58,0.0004463,2]
[312969115,1706555452808,-4851.0,0.0004469,2]
[312969116,1706555452818,-2758.0,0.0004469,2]
[312969117,1706555452827,-189.04781782,0.00044697,4]
[312969118,1706555452836,-1271.51,0.00044699,15]
[312969119,1706555452850,-1271.51,0.00044699,15]
[312969120,1706555452860,-1271.51,0.00044699,15]
[312969121,1706555452869,-1271.51,0.00044699,15]
[312969122,1706555452879,-1271.51,0.00044699,15]
[312969123,1706555452889,-1271.51,0.00044699,15]
[312969124,1706555452898,-1281.1,0.00044699,15]
[312969125,1706555452908,-1281.1,0.00044699,15]
[312969126,1706555452917,-1281.1,0.00044699,15]
[312969127,1706555452926,-1281.1,0.00044699,15]
[312969128,1706555452936,-102039.92139619,0.000447,2]
[312969129,1706555452946,-1717.98,0.000447,5]
[312969130,1706555452956,-1717.98,0.000447,5]
[312969131,1706555452966,-1717.98,0.000447,5]
[312969132,1706555452975,-1717.98,0.000447,5]
[312969133,1706555452985,-1717.98,0.000447,5]
[312969134,1706555452995,-1717.98,0.000447,5]
[312969135,1706555453005,-1717.98,0.000447,5]
[312969136,1706555453015,-1717.98,0.000447,5]
[312969137,1706555453025,-1717.98,0.000447,5]
[312969138,1706555453034,-1717.98,0.000447,5]
[312969139,1706555453044,-1717.98,0.000447,5]
[312969140,1706555453054,-1717.98,0.000447,5]
[312969141,1706555453063,-1717.98,0.000447,5]
[312969142,1706555453073,-1717.98,0.000447,5]
[312969143,1706555453083,-1717.98,0.000447,5]
[312969144,1706555453093,-1717.98,0.000447,5]
[312969145,1706555453102,-1717.98,0.000447,5]
[312969146,1706555453112,-1717.98,0.000447,5]
[312969147,1706555453122,-1717.98,0.000447,5]
[312969148,1706555453132,-1717.98,0.000447,5]
[312969149,1706555453142,-5000.0,0.00044713,12]
[312969150,1706555453151,-206.0,0.00044724,2]
[312969151,1706555453162,-151.0129,0.00044798,24]
[312969152,1706555453175,-582.27746595,0.000448,30]
[312969153,1706555453185,-3056.5833203,0.00044838,19]
[312969154,1706555453194,-194.58103892,0.0004488,2]
[312969155,1706555453204,-1965.58980928,0.0004488,2]
[312969156,1706555453214,-4384.0,0.0004489,2]
[312969157,1706555453223,-2489.0,0.0004489,2]
[312969158,1706555453234,-2527.89346623,0.000449,30]
[312969159,1706555453243,-368.65888731,0.000449,2]
[312969160,1706555453253,-154.47780885,0.0004495,30]
[312969161,1706555453263,-802.15312825,0.0004498,3]
[312969162,1706555453273,-683.69469946,0.0004498,3]
[312969163,1706555453282,-5000.0,0.00044986,4]
[312969164,1706555453292,-200.0,0.00044987,4]
[312969165,1706555453302,-2401.0,0.0004499,2]
[312969166,1706555453312,-1002.0,0.0004499,2]
[312969167,1706555453322,-1667.04027645,0.00044997,2]
[312969168,1706555453332,-50000.0,0.00045,25]
[312969169,1706555453341,-1000.0,0.00045,2]
[312969170,1706555453351,-2144.09637842,0.00045,2]
[312969171,1706555453361,-894.27485266,0.00045,2]
[312969172,1706555453374,-5000.0,0.00045,2]
[312969173,1706555453383,-500.0,0.00045,7]
[312969174,1706555453393,-23482.78889771,0.00045,4]
[312969175,1706555453403,-602.0,0.00045,5]
[312969176,1706555453414,-289.09745486,0.00045,4]
[312969177,1706555453423,-253.05044787,0.00045,4]
[312969178,1706555453433,-20000.0,0.00045,10]
[312969179,1706555453444,-5010.0,0.00045,3]
[312969180,1706555453453,-1388.29067874,0.00045,4]
[312969181,1706555453464,-5000.0,0.00045,2]
[312969182,1706555453474,-483.02085378,0.00045,10]
[312969183,1706555453483,-155.29490691,0.00045,2]
[312969184,1706555453493,-228.48856883,0.00045,2]
[312969185,1706555453502,-4638.4079899,0.00045,15]
[312969186,1706555453512,-1000.0,0.00045,2]
[312969187,1706555453522,-1931.01251522,0.00045,30]
[312969188,1706555453532,-7989.7744028,0.00045,30]
[312969189,1706555453542,-187.387632,0.00045,14]
[312969190,1706555453551,-187.387632,0.00045,14]
[312969191,1706555453561,-154.42,0.00045,5]
[312969192,1706555453570,-154.42,0.00045,5]
[312969193,1706555453580,-154.42,0.00045,5]
[312969194,1706555453589,-154.42,0.00045,5]
[312969195,1706555453598,-154.42,0.00045,5]
[312969196,1706555453608,-154.42,0.00045,5]
[312969197,1706555453617,-154.42,0.00045,5]
[312969198,1706555453626,-154.42,0.00045,5]
[312969199,1706555453636,-636.14340682,0.00045,60]
[312969200,1706555453646,-899.0,0.00045,2]
[312969201,1706555453655,-21209.0,0.00045,2]
[312969202,1706555453664,-1050.0,0.00045,3]
[312969203,1706555453673,-158.0,0.00045,30]
[312969204,1706555453683,-2080.12090974,0.00045005,5]
[312969205,1706555453693,-450.0,0.0004502,5]
[312969206,1706555453703,-450.0,0.0004502,5]
[312969207,1706555453713,-450.0,0.0004502,5]
[312969208,1706555453723,-5000.0,0.00045068,4]
[312969209,1706555453732,-5000.0,0.00045068,4]
[312969210,1706555453742,-5000.0,0.00045068,4]
[312969211,1706555453752,-5000.0,0.00045068,4]
[312969212,1706555453762,-5000.0,0.00045068,4]
[312969213,1706555453772,-3391.12064649,0.00045068,4]
[312969214,1706555453783,-647.0,0.000451,35]
[312969215,1706555453793,-666.0,0.00045105,4]
[312969216,1706555453804,-281.0373,0.0004514,30]
[312969217,1706555453814,-1000.0,0.00045149,2]
[312969218,1706555453824,-151.0129,0.00045198,25]
[312969219,1706555453834,-306.682723,0.000452,22]
[312969220,1706555453844,-306.682723,0.000452,22]
[312969221,1706555453854,-300.511365,0.000452,9]
[312969222,1706555453863,-200.0,0.000452,2]
[312969223,1706555453873,-150.0,0.000452,21]
[312969224,1706555453884,-6264.0,0.000452,2]
[312969225,1706555453893,-1000.0,0.0004527,3]
[312969226,1706555453903,-400.0,0.0004527,3]
[312969227,1706555453912,-207.0,0.0004529,30]
[312969228,1706555453921,-209.0,0.0004529,30]
[312969229,1706555453930,-208.0,0.0004529,30]
[312969230,1706555453940,-206.0,0.0004529,30]
[312969231,1706555453950,-206.0,0.0004529,30]
[312969232,1706555453960,-416.86932587,0.00045293,30]
[312969233,1706555453970,-1038.0108582,0.00045293,30]
[312969234,1706555453979,-238.05316134,0.00045293,30]
[312969235,1706555453989,-151.0129,0.00045348,23]
[312969236,1706555453998,-150.0,0.00045422,2]
[312969237,1706555454007,-156.09560122,0.00045441,2]
[312969238,1706555454017,-154.47780885,0.0004545,30]
[312969239,1706555454028,-151.0129,0.00045498,25]
[312969240,1706555454038,-2057.0,0.000455,30]
[312969241,1706555454048,-1207.51589181,0.000455,4]
[312969242,1706555454057,-960.39447797,0.000455,7]
[312969243,1706555454066,-2089.26,0.000455,3]
[312969244,1706555454075,-164.164172,0.000455,2]
[312969245,1706555454085,-748.3,0.00045596,2]
[312969246,1706555454094,-647.0,0.000456,35]
[312969247,1706555454104,-154.23524798,0.00045628,28]
[312969248,1706555454113,-151.0129,0.00045798,25]
[312969249,1706555454122,-528.75200688,0.0004588,100]
[312969250,1706555454131,-303.58,0.00045895,2]
[312969251,1706555454140,-154.47780885,0.0004595,30]
[312969252,1706555454150,-200.0,0.00045987,4]
[312969253,1706555454159,-50000.0,0.00046,26]
[312969254,1706555454168,-500.0,0.00046,2]
[312969255,1706555454177,-1079.0,0.00046,5]
[312969256,1706555454186,-184.590449,0.00046,14]
[312969257,1706555454195,-184.590449,0.00046,14]
[312969258,1706555454204,-159.017063,0.00046,14]
[312969259,1706555454213,-159.017063,0.00046,14]
[312969260,1706555454224,-155.272225,0.00046,17]
[312969261,1706555454234,-450.0,0.00046012,5]
[312969262,1706555454243,-176.79285268,0.00046027,6]
[312969263,1706555454252,-150.0,0.00046027,6]
[312969264,1706555454261,-152.0,0.0004604,10]
[312969265,1706555454271,-647.0,0.000461,36]
[312969266,1706555454279,-158.0,0.000461,30]
[312969267,1706555454289,-2071.4138917,0.00046136,30]
[312969268,1706555454298,-151.0129,0.00046198,26]
[312969269,1706555454307,-154.018203,0.000462,23]
[312969270,1706555454316,-200.0,0.000462,2]
[312969271,1706555454325,-151.0129,0.00046348,24]
[312969272,1706555454334,-321.03433937,0.00046401,7]
[312969273,1706555454343,-151.0129,0.00046498,26]
[312969274,1706555454352,-667.96932104,0.000465,20]
[312969275,1706555454364,-3992.08,0.000465,4]
[312969276,1706555454374,-500.0,0.000465,7]
[312969277,1706555454383,-3518.4405472,0.000465,4]
[312969278,1706555454393,-694.37227953,0.000465,4]
[312969279,1706555454404,-168.39041318,0.000465,7]
[312969280,1706555454414,-200.0,0.000465,2]
[312969281,1706555454425,-2228.29021066,0.000465,2]
[312969282,1706555454434,-33856.07460575,0.000465,4]
[312969283,1706555454445,-783.49621745,0.000465,4]
[312969284,1706555454454,-5000.0,0.000465,45]
[312969285,1706555454465,-854.65285225,0.000465,4]
[312969286,1706555454474,-155.0,0.000465,4]
[312969287,1706555454484,-3917.12869059,0.000465,10]
[312969288,1706555454493,-150.0,0.00046503,2]
[312969289,1706555454503,-500.0,0.00046574,30]
[312969290,1706555454512,-187.5,0.00046575,120]
[312969291,1706555454523,-300.0,0.00046575,30]
[312969292,1706555454535,-300.0,0.00046575,30]
[312969293,1706555454547,-300.0,0.00046575,30]
[312969294,1706555454556,-300.0,0.00046575,30]
[312969295,1706555454566,-300.0,0.00046575,30]
[312969296,1706555454575,-455.5634803,0.00046575,30]
[312969297,1706555454584,-2080.12090974,0.00046584,5]
[312969298,1706555454594,-1500.0,0.000466,2]
[312969299,1706555454603,-1000.0,0.000466,2]
[312969300,1706555454612,-647.0,0.000466,36]
[312969301,1706555454621,-6264.86162486,0.000466,2]
[312969302,1706555454630,-151.0129,0.00046798,27]
[312969303,1706555454639,-17078.11480719,0.00046811,8]
[312969304,1706555454649,-500.0,0.00046848,30]
[312969305,1706555454658,-150.0,0.00046849,30]
[312969306,1706555454667,-150.0,0.00046849,30]
[312969307,1706555454676,-150.0,0.00046849,30]
[312969308,1706555454686,-150.0,0.00046849,30]
[312969309,1706555454695,-150.0,0.00046849,30]
[312969310,1706555454703,-150.0,0.00046849,30]
[312969311,1706555454713,-150.0,0.00046849,30]
[312969312,1706555454723,-150.0,0.00046849,30]
[312969313,1706555454732,-150.0,0.00046849,30]
[312969314,1706555454741,-150.0,0.00046849,30]
[312969315,1706555454750,-150.0,0.00046849,30]
[312969316,1706555454759,-150.0,0.00046849,30]
[312969317,1706555454769,-150.0,0.00046849,30]
[312969318,1706555454778,-4386.13,0.00046849,120]
[312969319,1706555454787,-372.0,0.0004689,2]
[312969320,1706555454796,-7000.0,0.00046933,2]
[312969321,1706555454806,-154.47780885,0.0004695,30]
[312969322,1706555454815,-6987.0,0.0004699,2]
[312969323,1706555454824,-3972.0,0.0004699,2]
[312969324,1706555454833,-50000.0,0.00047,27]
[312969325,1706555454843,-150640.17141346,0.00047,2]
[312969326,1706555454852,-150.0,0.00047,18]
[312969327,1706555454861,-1100.0,0.00047,3]
[312969328,1706555454870,-450.0,0.00047004,5]
[312969329,1706555454879,-647.0,0.000471,37]
[312969330,1706555454888,-500.0,0.00047122,30]
[312969331,1706555454897,-303.58,0.0004716,2]
[312969332,1706555454906,-255.0,0.00047163,12]
[312969333,1706555454916,-151.0129,0.00047198,27]
[312969334,1706555454925,-158.0,0.000472,30]
[312969335,1706555454934,-255.0,0.00047213,12]
[312969336,1706555454943,-151.0129,0.00047348,26]
[312969337,1706555454952,-500.0,0.00047396,30]
[312969338,1706555454962,-150.0,0.00047427,30]
[312969339,1706555454972,-10091.2452,0.0004744,7]
[312969340,1706555454982,-4828.0,0.0004749,2]
[312969341,1706555454992,-2744.0,0.0004749,2]
[312969342,1706555455001,-151.0129,0.00047498,27]
[312969343,1706555455011,-763.99109848,0.000475,10]
[312969344,1706555455021,-450.0,0.000475,5]
[312969345,1706555455030,-218.804293,0.00047558,14]
[312969346,1706555455041,-151.0,0.00047558,14]
[312969347,1706555455181,-151.0,0.00047558,14]
[312969348,1706555455205,-371.638967,0.00047558,14]
[312969349,1706555455216,-371.638967,0.00047558,14]
[312969350,1706555455225,-151.0,0.00047558,14]
[312969351,1706555455234,-936.93,0.00047572,15]
[312969352,1706555455243,-150.0,0.00047585,2]
[312969353,1706555455252,-5077.60743725,0.000476,2]
[312969354,1706555455262,-647.0,0.000476,37]
[312969355,1706555455271,-152.0,0.00047642,11]
[312969356,1706555455280,-500.0,0.0004767,30]
[312969357,1706555455289,-150.1,0.0004777,3]
[312969358,1706555455298,-2057.0,0.00047775,30]
[312969359,1706555455307,-151.0129,0.00047798,27]
[312969360,1706555455317,-748.3,0.0004786,2]
[312969361,1706555455326,-1978.0,0.0004789,2]
[312969362,1706555455335,-1124.0,0.0004789,2]
[312969363,1706555455344,-10000.0,0.0004789,7]
[312969364,1706555455353,-500.0,0.00047944,30]
[312969365,1706555455364,-500.0,0.00047944,21]
[312969366,1706555455373,-500.0,0.00047944,30]
[312969367,1706555455383,-154.47780885,0.0004795,30]
[312969368,1706555455392,-8004.9591033,0.00047967,2]
[312969369,1706555455401,-200.0,0.00047987,5]
[312969370,1706555455411,-450.0,0.00047996,5]
[312969371,1706555455420,-1667.04027645,0.00047997,2]
[312969372,1706555455430,-50000.0,0.00048,28]
[312969373,1706555455439,-5091.28094035,0.00048,2]
[312969374,1706555455449,-1647808.8497992,0.00048,3]
[312969375,1706555455458,-30172.83135707,0.00048,12]
[312969376,1706555455467,-999.99999901,0.00048,5]
[312969377,1706555455476,-800.0,0.00048,4]
[312969378,1706555455485,-500000.0,0.00048,14]
[312969379,1706555455494,-1009.64247287,0.00048,10]
[312969380,1706555455502,-500.0,0.00048,7]
[312969381,1706555455512,-57401.05060244,0.00048,14]
[312969382,1706555455521,-184.590449,0.00048,14]
[312969383,1706555455530,-184.590449,0.00048,14]
[312969384,1706555455539,-159.017063,0.00048,14]
[312969385,1706555455547,-159.017063,0.00048,14]
[312969386,1706555455556,-300.0,0.00048,30]
[312969387,1706555455565,-151.0,0.00048,14]
[312969388,1706555455574,-300.0,0.00048,30]
[312969389,1706555455583,-158.196832,0.00048,14]
[312969390,1706555455592,-371.638967,0.00048,14]
[312969391,1706555455600,-371.638967,0.00048,14]
[312969392,1706555455610,-151.0,0.00048,14]
[312969393,1706555455619,-208.806046,0.00048,14]
[312969394,1706555455628,-193.757379,0.00048,14]
[312969395,1706555455637,-193.757379,0.00048,14]
[312969396,1706555455646,-288.297752,0.00048,14]
[312969397,1706555455657,-288.297752,0.00048,14]
[312969398,1706555455666,-156.730305,0.00048,14]
[312969399,1706555455675,-150.0,0.00048,19]
[312969400,1706555455684,-451.573241,0.00048,14]
[312969401,1706555455693,-451.573241,0.00048,14]
[312969402,1706555455702,-151.0,0.00048,14]
[312969403,1706555455711,-151.0,0.00048,14]
[312969404,1706555455721,-151.0,0.00048,14]
[312969405,1706555455731,-491.81739,0.00048,14]
[312969406,1706555455740,-151.0,0.00048,14]
[312969407,1706555455749,-151.0,0.00048,14]
[312969408,1706555455758,-491.81739,0.00048,14]
[312969409,1706555455767,-151.0,0.00048,14]
[312969410,1706555455776,-151.0,0.00048,14]
[312969411,1706555455787,-707.214832,0.00048,14]
[312969412,1706555455797,-707.214832,0.00048,14]
[312969413,1706555455806,-1396.549659,0.00048,14]
[312969414,1706555455815,-1396.549659,0.00048,14]
[312969415,1706555455825,-151.0,0.00048,14]
[312969416,1706555455834,-437.513255,0.00048,14]
[312969417,1706555455844,-437.513255,0.00048,14]
[312969418,1706555455853,-259.83564,0.00048,14]
[312969419,1706555455863,-151.0,0.00048,14]
[312969420,1706555455873,-150.0,0.00048005,30]
[312969421,1706555455882,-176.79285268,0.00048055,8]
[312969422,1706555455891,-150.0,0.00048055,8]
[312969423,1706555455901,-647.0,0.000481,38]
[312969424,1706555455911,-2080.12090974,0.00048163,5]
[312969425,1706555455920,-167.0,0.00048177,2]
[312969426,1706555455929,-151.0129,0.00048198,29]
[312969427,1706555455938,-169.0,0.00048213,2]
[312969428,1706555455947,-206.0,0.00048213,2]
[312969429,1706555455956,-500.0,0.00048218,30]
[312969430,1706555455967,-159.79133316,0.00048223,15]
[312969431,1706555455976,-158.0,0.000483,60]
[312969432,1706555455986,-151.0129,0.00048348,28]
[312969433,1706555455994,-303.58,0.00048425,2]
[312969434,1706555456003,-511.42314155,0.00048492,21]
[312969435,1706555456013,-500.0,0.00048492,30]
[312969436,1706555456022,-255.0,0.000485,2]
[312969437,1706555456033,-273.03998735,0.000485,6]
[312969438,1706555456042,-150.0,0.00048584,30]
[312969439,1706555456052,-150.0,0.00048584,30]
[312969440,1706555456061,-647.0,0.000486,38]
[312969441,1706555456070,-150.0,0.00048666,2]
[312969442,1706555456079,-1127.0,0.0004869,2]
[312969443,1706555456088,-640.0,0.0004869,2]
[312969444,1706555456098,-21752.85505689,0.000487,2]
[312969445,1706555456107,-500.0,0.00048766,30]
[312969446,1706555456117,-2859.1266509,0.00048786,2]
[312969447,1706555456127,-84472.3822666,0.00048786,2]
[312969448,1706555456136,-203.50461844,0.00048797,61]
[312969449,1706555456145,-1238.65,0.000488,25]
[312969450,1706555456155,-3235.0,0.000488,20]
[312969451,1706555456164,-3334.0805529,0.00048817,2]
[312969452,1706555456173,-10950.36516082,0.0004882,2]
[312969453,1706555456183,-707.214832,0.0004882,14]
[312969454,1706555456192,-707.214832,0.0004882,14]
[312969455,1706555456201,-1396.549659,0.0004882,14]
[312969456,1706555456210,-1396.549659,0.0004882,14]
[312969457,1706555456220,-151.0,0.0004882,14]
[312969458,1706555456229,-437.513255,0.0004882,14]
[312969459,1706555456239,-437.513255,0.0004882,14]
[312969460,1706555456248,-259.83564,0.0004882,14]
[312969461,1706555456257,-151.0,0.0004882,14]
[312969462,1706555456266,-207949.04580612,0.000489,3]
[312969463,1706555456275,-3979.97117256,0.000489,3]
[312969464,1706555456284,-154.47780885,0.0004895,30]
[312969465,1706555456293,-5000.0,0.0004898,7]
[312969466,1706555456302,-13707.60054675,0.0004898,8]
[312969467,1706555456311,-187.387632,0.0004898,14]
[312969468,1706555456320,-187.387632,0.0004898,14]
[312969469,1706555456330,-450.0,0.00048988,5]
[312969470,1706555456341,-2683.0,0.0004899,2]
[312969471,1706555456350,-1524.0,0.0004899,2]
[312969472,1706555456362,-50000.0,0.00049,29]
[312969473,1706555456373,-1017.04135368,0.00049,2]
[312969474,1706555456384,-963.85,0.00049,19]
[312969475,1706555456393,-665.82108633,0.00049,20]
[312969476,1706555456402,-7216.63096934,0.00049,2]
[312969477,1706555456412,-1308.07,0.00049,7]
[312969478,1706555456421,-50102.1995,0.00049,2]
[312969479,1706555456430,-164.164172,0.00049,2]
[312969480,1706555456441,-556.63391312,0.00049,30]
[312969481,1706555456450,-150.0,0.00049,20]
[312969482,1706555456459,-500.0,0.0004904,30]
[312969483,1706555456468,-160.0,0.00049041,120]
[312969484,1706555456477,-368.0,0.0004906,2]
[312969485,1706555456487,-5537.77196947,0.00049075,28]
[312969486,1706555456496,-5000.0,0.00049075,27]
[312969487,1706555456505,-5000.0,0.00049075,27]
[312969488,1706555456514,-5000.0,0.00049075,26]
[312969489,1706555456523,-4722.69195003,0.00049076,29]
[312969490,1706555456532,-647.0,0.000491,39]
[312969491,1706555456542,-150.0,0.00049162,30]
[312969492,1706555456551,-151.0129,0.00049198,29]
[312969493,1706555456561,-300.0,0.000492,30]
[312969494,1706555456570,-152.0,0.00049244,12]
[312969495,1706555456580,-1000.0,0.000493,2]
[312969496,1706555456589,-3216.52066863,0.00049303,4]
[312969497,1706555456597,-500.0,0.00049314,90]
[312969498,1706555456607,-426.47,0.00049315,2]
[312969499,1706555456616,-852.94,0.00049315,12]
[312969500,1706555456625,-1279.41,0.00049315,22]
[312969501,1706555456634,-375.0,0.00049315,120]
[312969502,1706555456644,-500.0,0.00049315,18]
[312969503,1706555456654,-5254.0,0.0004939,2]
[312969504,1706555456663,-2985.0,0.0004939,2]
[312969505,1706555456672,-160.0,0.00049397,120]
[312969506,1706555456682,-158.0,0.000494,60]
[312969507,1706555456692,-154.23524798,0.00049414,42]
[312969508,1706555456701,-150.0,0.00049451,30]
[312969509,1706555456710,-150.0,0.00049451,30]
[312969510,1706555456721,-150.0,0.00049451,30]
[312969511,1706555456731,-5000.0,0.00049463,7]
[312969512,1706555456740,-205.0,0.00049476,40]
[312969513,1706555456749,-6862.92654689,0.00049487,2]
[312969514,1706555456759,-151.0129,0.00049498,29]
[312969515,1706555456769,-163.98477146,0.000495,2]
[312969516,1706555456778,-1033.69,0.000495,21]
[312969517,1706555456788,-3584.28679271,0.00049555,29]
[312969518,1706555456797,-500.0,0.00049588,30]
[312969519,1706555456806,-1717.98,0.000496,6]
[312969520,1706555456816,-1717.98,0.000496,6]
[312969521,1706555456825,-1717.98,0.000496,6]
[312969522,1706555456835,-1717.98,0.000496,6]
[312969523,1706555456844,-1717.98,0.000496,6]
[312969524,1706555456854,-1717.98,0.000496,6]
[312969525,1706555456863,-1717.98,0.000496,6]
[312969526,1706555456873,-1717.98,0.000496,6]
[312969527,1706555456882,-1717.98,0.000496,6]
[312969528,1706555456892,-1717.98,0.000496,6]
[312969529,1706555456901,-1717.98,0.000496,6]
[312969530,1706555456911,-1717.98,0.000496,6]
[312969531,1706555456921,-1717.98,0.000496,6]
[312969532,1706555456931,-1717.98,0.000496,6]
[312969533,1706555456940,-1717.98,0.000496,6]
[312969534,1706555456950,-1717.98,0.000496,6]
[312969535,1706555456959,-1717.98,0.000496,6]
[312969536,1706555456970,-1717.98,0.000496,6]
[312969537,1706555456980,-1717.98,0.000496,6]
[312969538,1706555456990,-1717.98,0.000496,6]
[312969539,1706555456999,-1235.355784,0.000496,40]
[312969540,1706555457008,-150.0,0.0004965,20]
[312969541,1706555457018,-303.58,0.0004969,2]
[312969542,1706555457027,-371.0,0.0004969,2]
[312969543,1706555457038,-3740.4,0.000497,35]
[312969544,1706555457049,-150.0,0.0004974,30]